[Event "Late-Titled-Tuesday-Blitz-June-25-2024"]
[Site "Chess.com"]
[Date "2024.06.25"]
[Round "1"]
[White "ccccvhhhj"]
[Black "Dolphin_2010"]
[Result "0-1"]
[WhiteElo "2466"]
[BlackElo "2812"]
[TimeControl "180+1"]
[EndTime "14:07:46 PDT"]
[Termination "Dolphin_2010 won on time"]

1. e4 {[%clk 0:03:00.9]} 1... c6 {[%clk 0:02:56.2]} 2. d4 {[%clk 0:03:00.7]}
2... d5 {[%clk 0:02:57.1]} 3. exd5 {[%clk 0:03:01.5]} 3... cxd5 {[%clk
0:02:55.9]} 4. c4 {[%clk 0:03:02.4]} 4... Nf6 {[%clk 0:02:48.8]} 5. Nc3 {[%clk
0:03:02.7]} 5... g6 {[%clk 0:02:48.5]} 6. Qb3 {[%clk 0:03:02.4]} 6... Bg7 {[%clk
0:02:48]} 7. cxd5 {[%clk 0:03:02.4]} 7... O-O {[%clk 0:02:43.1]} 8. Nge2 {[%clk
0:03:02.8]} 8... Nbd7 {[%clk 0:02:42.6]} 9. Nf4 {[%clk 0:03:03.2]} 9... Nb6
{[%clk 0:02:42.2]} 10. Be2 {[%clk 0:03:03.9]} 10... Bg4 {[%clk 0:02:40.5]} 11.
f3 {[%clk 0:02:45.1]} 11... Bd7 {[%clk 0:02:31.4]} 12. O-O {[%clk 0:02:39.3]}
12... Rc8 {[%clk 0:02:24.5]} 13. a4 {[%clk 0:02:19.9]} 13... a5 {[%clk
0:02:19.1]} 14. Re1 {[%clk 0:02:11.1]} 14... Ne8 {[%clk 0:02:09.8]} 15. Be3
{[%clk 0:02:05.7]} 15... Nd6 {[%clk 0:02:04.4]} 16. Bf2 {[%clk 0:02:05.1]} 16...
Nbc4 {[%clk 0:01:51.6]} 17. Bxc4 {[%clk 0:01:55.5]} 17... Rxc4 {[%clk
0:01:52.5]} 18. Rad1 {[%clk 0:01:39.2]} 18... Bf5 {[%clk 0:01:46.3]} 19. g4
{[%clk 0:01:31.4]} 19... Rb4 {[%clk 0:01:35.1]} 20. Qa2 {[%clk 0:01:21.6]} 20...
Bc2 {[%clk 0:01:28.2]} 21. Rd2 {[%clk 0:01:21.6]} 21... Bb3 {[%clk 0:01:22.5]}
22. Qa1 {[%clk 0:01:21.8]} 22... Bh6 {[%clk 0:01:17]} 23. Bg3 {[%clk 0:01:12.1]}
23... Qb6 {[%clk 0:00:58.5]} 24. h4 {[%clk 0:00:50.1]} 24... Rxd4 {[%clk
0:00:48.1]} 25. Bf2 {[%clk 0:00:49.2]} 25... Rxd2 {[%clk 0:00:46.4]} 26. Bxb6
{[%clk 0:00:49.2]} 26... Bxf4 {[%clk 0:00:47]} 27. Re2 {[%clk 0:00:44.9]} 27...
Rd3 {[%clk 0:00:28.8]} 28. Kf2 {[%clk 0:00:36.7]} 28... Rc8 {[%clk 0:00:23.2]}
29. Be3 {[%clk 0:00:33]} 29... Be5 {[%clk 0:00:18.1]} 30. Bb6 {[%clk 0:00:15.2]}
30... Bxc3 {[%clk 0:00:17.4]} 31. bxc3 {[%clk 0:00:16.1]} 31... Rcxc3 {[%clk
0:00:16.9]} 32. Re3 {[%clk 0:00:04.9]} 32... Rc2+ {[%clk 0:00:08.4]} 33. Re2
{[%clk 0:00:05.5]} 33... Rxe2+ {[%clk 0:00:06.4]} 34. Kxe2 {[%clk 0:00:06.4]}
34... Bc4 {[%clk 0:00:06.1]} 35. Kf2 {[%clk 0:00:05.8]} 35... Rd2+ {[%clk
0:00:06]} 36. Kg3 {[%clk 0:00:05.5]} 36... Rxd5 {[%clk 0:00:06.9]} 37. Be3
{[%clk 0:00:04.5]} 37... Rd3 {[%clk 0:00:07.2]} 38. Bh6 {[%clk 0:00:05]} 38...
f6 {[%clk 0:00:07.7]} 39. Qc1 {[%clk 0:00:04.2]} 39... Bd5 {[%clk 0:00:06.7]}
40. Qe1 {[%clk 0:00:02.7]} 40... Rxf3+ {[%clk 0:00:06.2]} 41. Kh2 {[%clk
0:00:03.4]} 41... Kf7 {[%clk 0:00:05.5]} 42. Qc1 {[%clk 0:00:02.5]} 42... Rd3
{[%clk 0:00:05.1]} 43. g5 {[%clk 0:00:01.9]} 43... Nf5 {[%clk 0:00:03.2]} 44.
Qc2 {[%clk 0:00:01]} 44... Rd4 {[%clk 0:00:03]} 0-1

[Event "Late-Titled-Tuesday-Blitz-June-25-2024"]
[Site "Chess.com"]
[Date "2024.06.25"]
[Round "1"]
[White "Laico"]
[Black "IMRosen"]
[Result "0-1"]
[WhiteElo "2437"]
[BlackElo "2737"]
[TimeControl "180+1"]
[EndTime "14:07:46 PDT"]
[Termination "IMRosen won on time"]

1. e4 {[%clk 0:03:00.9]} 1... c5 {[%clk 0:02:58.1]} 2. Nc3 {[%clk 0:02:57.6]}
2... Nc6 {[%clk 0:02:57]} 3. f4 {[%clk 0:02:57.3]} 3... e6 {[%clk 0:02:55.2]} 4.
Nf3 {[%clk 0:02:53.3]} 4... a6 {[%clk 0:02:55.3]} 5. g3 {[%clk 0:02:52.7]} 5...
d5 {[%clk 0:02:54.8]} 6. Bg2 {[%clk 0:02:51.8]} 6... Nf6 {[%clk 0:02:51.3]} 7.
e5 {[%clk 0:02:48.2]} 7... Nd7 {[%clk 0:02:51.4]} 8. d3 {[%clk 0:02:48.5]} 8...
h5 {[%clk 0:02:49]} 9. h3 {[%clk 0:02:44.5]} 9... b5 {[%clk 0:02:46.7]} 10. O-O
{[%clk 0:02:43.4]} 10... Bb7 {[%clk 0:02:42.3]} 11. Ne2 {[%clk 0:02:43.5]} 11...
Ne7 {[%clk 0:02:29.6]} 12. c3 {[%clk 0:02:11.3]} 12... Nf5 {[%clk 0:02:27.2]}
13. d4 {[%clk 0:02:10.1]} 13... Qb6 {[%clk 0:02:22.2]} 14. g4 {[%clk 0:02:08.9]}
14... hxg4 {[%clk 0:02:22.2]} 15. hxg4 {[%clk 0:02:09.8]} 15... Nh4 {[%clk
0:02:23]} 16. Nxh4 {[%clk 0:02:09.5]} 16... Rxh4 {[%clk 0:02:22.6]} 17. Ng3
{[%clk 0:02:09.1]} 17... cxd4 {[%clk 0:02:03.7]} 18. cxd4 {[%clk 0:02:10]} 18...
Rc8 {[%clk 0:01:51.8]} 19. Be3 {[%clk 0:02:08.5]} 19... b4 {[%clk 0:01:49]} 20.
Bf2 {[%clk 0:02:05.3]} 20... Be7 {[%clk 0:01:47.3]} 21. Nh5 {[%clk 0:01:56.9]}
21... g6 {[%clk 0:01:37.1]} 22. Ng7+ {[%clk 0:01:21.7]} 22... Kf8 {[%clk
0:01:33.3]} 23. f5 {[%clk 0:01:22.2]} 23... Rh7 {[%clk 0:01:10.3]} 24. fxe6
{[%clk 0:00:46.4]} 24... Kxg7 {[%clk 0:00:55.7]} 25. exd7 {[%clk 0:00:43.8]}
25... Rd8 {[%clk 0:00:55.9]} 26. Qf3 {[%clk 0:00:34]} 26... Qe6 {[%clk
0:00:49.3]} 27. Be3 {[%clk 0:00:28.9]} 27... Rxd7 {[%clk 0:00:48.2]} 28. Rac1
{[%clk 0:00:28.5]} 28... Bd8 {[%clk 0:00:46.8]} 29. Bh3 {[%clk 0:00:23.6]} 29...
a5 {[%clk 0:00:34]} 30. Kg2 {[%clk 0:00:21.3]} 30... g5 {[%clk 0:00:20.2]} 31.
Kg3 {[%clk 0:00:20.6]} 31... Ba6 {[%clk 0:00:16.8]} 32. Rh1 {[%clk 0:00:20]}
32... Bd3 {[%clk 0:00:16.8]} 33. Bg2 {[%clk 0:00:15.5]} 33... Rxh1 {[%clk
0:00:13.9]} 34. Rxh1 {[%clk 0:00:14.6]} 34... Bg6 {[%clk 0:00:13.6]} 35. Rc1
{[%clk 0:00:13]} 35... a4 {[%clk 0:00:12.9]} 36. Qe2 {[%clk 0:00:13]} 36... Rb7
{[%clk 0:00:09.3]} 37. Qd2 {[%clk 0:00:10.1]} 37... Be7 {[%clk 0:00:09.1]} 38.
Bxg5 {[%clk 0:00:09.6]} 38... b3 {[%clk 0:00:04.8]} 39. a3 {[%clk 0:00:08.9]}
39... Bc2 {[%clk 0:00:04.6]} 40. Rh1 {[%clk 0:00:08.4]} 40... Qg6 {[%clk
0:00:03.9]} 41. Bh6+ {[%clk 0:00:05.4]} 41... Kg8 {[%clk 0:00:03.3]} 42. Bf4
{[%clk 0:00:04.3]} 42... Bf5 {[%clk 0:00:01.7]} 43. Bf3 {[%clk 0:00:02.7]} 43...
Be4 {[%clk 0:00:02.4]} 44. Qh2 {[%clk 0:00:02]} 44... Qg7 {[%clk 0:00:02.5]} 45.
Qh5 {[%clk 0:00:01.5]} 45... Bg6 {[%clk 0:00:02.1]} 46. Qh3 {[%clk 0:00:01.2]}
46... Rd7 {[%clk 0:00:02.8]} 0-1

[Event "Late-Titled-Tuesday-Blitz-June-25-2024"]
[Site "Chess.com"]
[Date "2024.06.25"]
[Round "1"]
[White "sari07"]
[Black "varunkrishnanchess"]
[Result "0-1"]
[WhiteElo "2362"]
[BlackElo "2648"]
[TimeControl "180+1"]
[EndTime "14:07:46 PDT"]
[Termination "varunkrishnanchess won by resignation"]

1. d4 {[%clk 0:03:00.9]} 1... Nf6 {[%clk 0:02:56.8]} 2. Nc3 {[%clk 0:03:00.4]}
2... d5 {[%clk 0:02:56.1]} 3. Bf4 {[%clk 0:02:59.9]} 3... h6 {[%clk 0:02:45.3]}
4. Nb5 {[%clk 0:02:55.7]} 4... Na6 {[%clk 0:02:43.5]} 5. e3 {[%clk 0:02:52.1]}
5... c6 {[%clk 0:02:39.8]} 6. Nc3 {[%clk 0:02:49.2]} 6... Bf5 {[%clk 0:02:38]}
7. Bxa6 {[%clk 0:02:45.2]} 7... bxa6 {[%clk 0:02:35.7]} 8. Nf3 {[%clk
0:02:42.4]} 8... e6 {[%clk 0:02:35.5]} 9. O-O {[%clk 0:02:32.7]} 9... Be7 {[%clk
0:02:30.3]} 10. Ne5 {[%clk 0:02:27.3]} 10... Qc8 {[%clk 0:02:23.6]} 11. Na4
{[%clk 0:02:06.2]} 11... Bh7 {[%clk 0:02:22]} 12. Rc1 {[%clk 0:02:01.9]} 12...
Qb7 {[%clk 0:02:18.4]} 13. c4 {[%clk 0:01:54.8]} 13... O-O {[%clk 0:02:15.3]}
14. b3 {[%clk 0:01:50.2]} 14... Ba3 {[%clk 0:02:07.4]} 15. Ra1 {[%clk
0:01:45.3]} 15... Rad8 {[%clk 0:01:58.2]} 16. Qe2 {[%clk 0:01:35.7]} 16... Nd7
{[%clk 0:01:50.2]} 17. Qg4 {[%clk 0:01:06.7]} 17... Nf6 {[%clk 0:01:48.2]} 18.
Qe2 {[%clk 0:01:03.8]} 18... Be7 {[%clk 0:01:32.9]} 19. Rfd1 {[%clk 0:00:59.1]}
19... Ne4 {[%clk 0:01:32.1]} 20. f3 {[%clk 0:00:56.7]} 20... Nd6 {[%clk
0:01:29.6]} 21. Nc5 {[%clk 0:00:53.4]} 21... Qc8 {[%clk 0:01:29.1]} 22. e4
{[%clk 0:00:49.3]} 22... dxe4 {[%clk 0:01:13.9]} 23. fxe4 {[%clk 0:00:50.2]}
23... a5 {[%clk 0:01:12.5]} 24. Rac1 {[%clk 0:00:47.7]} 24... Nb7 {[%clk
0:01:11.1]} 25. Nxb7 {[%clk 0:00:27.7]} 25... Qxb7 {[%clk 0:01:12]} 26. Rc3
{[%clk 0:00:27.7]} 26... Bf6 {[%clk 0:00:56.4]} 27. Rg3 {[%clk 0:00:25.5]} 27...
Kh8 {[%clk 0:00:56]} 28. Qe3 {[%clk 0:00:20.9]} 28... g5 {[%clk 0:00:45.9]} 29.
Ng4 {[%clk 0:00:19.3]} 29... gxf4 {[%clk 0:00:41]} 30. Qxf4 {[%clk 0:00:20.2]}
30... Bg5 {[%clk 0:00:35.1]} 31. Qe5+ {[%clk 0:00:14]} 31... f6 {[%clk
0:00:34.9]} 32. Qxe6 {[%clk 0:00:14.6]} 32... Qd7 {[%clk 0:00:32.7]} 33. Qxd7
{[%clk 0:00:11.8]} 33... Rxd7 {[%clk 0:00:33.6]} 34. d5 {[%clk 0:00:11.6]} 34...
Bxe4 {[%clk 0:00:32.3]} 35. d6 {[%clk 0:00:11.4]} 35... Rfd8 {[%clk 0:00:31.3]}
36. c5 {[%clk 0:00:11.2]} 36... Re8 {[%clk 0:00:27.3]} 37. h4 {[%clk 0:00:07.1]}
37... Bxh4 {[%clk 0:00:21.7]} 38. Rh3 {[%clk 0:00:07.4]} 38... Bg5 {[%clk
0:00:22]} 39. Nxh6 {[%clk 0:00:06.9]} 39... Kg7 {[%clk 0:00:22.1]} 40. Ng4
{[%clk 0:00:06.3]} 40... Bf5 {[%clk 0:00:22.1]} 41. Rg3 {[%clk 0:00:05.7]} 41...
Bxg4 {[%clk 0:00:21.5]} 42. Rxg4 {[%clk 0:00:05.9]} 42... Re2 {[%clk 0:00:21]}
43. Kf1 {[%clk 0:00:04.2]} 43... Rxa2 {[%clk 0:00:20.8]} 44. Re4 {[%clk
0:00:04.8]} 44... Kf7 {[%clk 0:00:17.2]} 45. Rde1 {[%clk 0:00:05.1]} 45... Rd2
{[%clk 0:00:15.7]} 46. Re7+ {[%clk 0:00:05.4]} 46... Rxe7 {[%clk 0:00:15.6]} 47.
Rxe7+ {[%clk 0:00:06.3]} 47... Kf8 {[%clk 0:00:13.8]} 48. Rxa7 {[%clk
0:00:07.2]} 48... Be3 {[%clk 0:00:12.6]} 49. g4 {[%clk 0:00:06.2]} 49... Bxc5
{[%clk 0:00:11.8]} 50. Ra8+ {[%clk 0:00:06.8]} 50... Kf7 {[%clk 0:00:11.7]} 51.
Rxa5 {[%clk 0:00:04.9]} 51... Bxd6 {[%clk 0:00:11.9]} 52. Ra7+ {[%clk 0:00:05]}
52... Ke6 {[%clk 0:00:11.9]} 0-1

[Event "Late-Titled-Tuesday-Blitz-June-25-2024"]
[Site "Chess.com"]
[Date "2024.06.25"]
[Round "1"]
[White "edgarhay012"]
[Black "Tigranpatagonian"]
[Result "0-1"]
[WhiteElo "2708"]
[BlackElo "2443"]
[TimeControl "180+1"]
[EndTime "14:07:47 PDT"]
[Termination "Tigranpatagonian won by resignation"]

1. Nc3 {[%clk 0:02:48.4]} 1... g6 {[%clk 0:02:58.8]} 2. d4 {[%clk 0:02:47.7]}
2... Bg7 {[%clk 0:02:59.4]} 3. h4 {[%clk 0:02:48.5]} 3... c5 {[%clk 0:02:57.9]}
4. dxc5 {[%clk 0:02:47.5]} 4... Bxc3+ {[%clk 0:02:55.5]} 5. bxc3 {[%clk
0:02:48.4]} 5... Qa5 {[%clk 0:02:55.3]} 6. h5 {[%clk 0:02:48.3]} 6... Qxc3+
{[%clk 0:02:50.6]} 7. Bd2 {[%clk 0:02:47]} 7... Qxc5 {[%clk 0:02:51.1]} 8. Nf3
{[%clk 0:02:46.6]} 8... Nf6 {[%clk 0:02:48.9]} 9. e3 {[%clk 0:02:42.9]} 9... Nc6
{[%clk 0:02:47.7]} 10. Be2 {[%clk 0:02:39.8]} 10... Nxh5 {[%clk 0:02:45.1]} 11.
Rb1 {[%clk 0:02:37.2]} 11... Nf6 {[%clk 0:02:42]} 12. Rh4 {[%clk 0:02:25.5]}
12... a6 {[%clk 0:02:37.7]} 13. Nd4 {[%clk 0:02:19.1]} 13... d6 {[%clk
0:02:31.3]} 14. Nxc6 {[%clk 0:01:36.7]} 14... Qxc6 {[%clk 0:02:22.5]} 15. Bf3
{[%clk 0:01:35.1]} 15... Qc7 {[%clk 0:02:18.4]} 16. a4 {[%clk 0:01:26.6]} 16...
Rb8 {[%clk 0:02:15.8]} 17. a5 {[%clk 0:01:23.5]} 17... Be6 {[%clk 0:02:10.8]}
18. Rhb4 {[%clk 0:01:13.5]} 18... Nd5 {[%clk 0:02:01.8]} 19. R4b3 {[%clk
0:00:16.1]} 19... O-O {[%clk 0:01:58.7]} 20. Kf1 {[%clk 0:00:06.7]} 20... b5
{[%clk 0:01:47]} 21. axb6 {[%clk 0:00:06]} 21... Nxb6 {[%clk 0:01:46.9]} 22. Rb4
{[%clk 0:00:05.2]} 22... Nc4 {[%clk 0:01:40.2]} 23. Bc3 {[%clk 0:00:02.9]} 23...
Rxb4 {[%clk 0:01:35.4]} 24. Bxb4 {[%clk 0:00:02.9]} 24... Rb8 {[%clk 0:01:32]}
25. Rb3 {[%clk 0:00:02.6]} 25... a5 {[%clk 0:01:23.9]} 26. Bc3 {[%clk
0:00:01.6]} 26... Nxe3+ {[%clk 0:01:15.7]} 27. fxe3 {[%clk 0:00:01]} 27... Bxb3
{[%clk 0:01:16.2]} 28. Qd4 {[%clk 0:00:01.4]} 28... Qc4+ {[%clk 0:01:16]} 29.
Kf2 {[%clk 0:00:01.7]} 29... Qxd4 {[%clk 0:01:15.7]} 30. exd4 {[%clk 0:00:02.2]}
30... Bxc2 {[%clk 0:01:14.7]} 31. Bxa5 {[%clk 0:00:03.1]} 31... Rb5 {[%clk
0:01:07.5]} 32. Bc3 {[%clk 0:00:02.5]} 32... Bb3 {[%clk 0:01:06]} 33. Ke3 {[%clk
0:00:02.2]} 33... Bd5 {[%clk 0:01:05.9]} 34. Bd1 {[%clk 0:00:02.3]} 34... Bxg2
{[%clk 0:01:04]} 35. Ba4 {[%clk 0:00:02.3]} 35... Rb8 {[%clk 0:01:02.8]} 36. Bd7
{[%clk 0:00:01.6]} 36... Bd5 {[%clk 0:01:01.8]} 37. Ba5 {[%clk 0:00:01.8]} 37...
Ra8 {[%clk 0:01:00.3]} 38. Bd2 {[%clk 0:00:01.9]} 38... Ra3+ {[%clk 0:00:58.8]}
39. Kf4 {[%clk 0:00:02.4]} 39... Kg7 {[%clk 0:00:55.4]} 40. Be1 {[%clk
0:00:01.8]} 40... Rf3+ {[%clk 0:00:54.8]} 41. Kg4 {[%clk 0:00:02]} 41... f6
{[%clk 0:00:51.2]} 42. Kh4 {[%clk 0:00:01.4]} 42... h5 {[%clk 0:00:48.1]} 43.
Bd2 {[%clk 0:00:01.6]} 43... Rd3 {[%clk 0:00:46.4]} 44. Bf4 {[%clk 0:00:01.6]}
44... Bf7 {[%clk 0:00:41.7]} 45. Bg5 {[%clk 0:00:02.5]} 45... Rxd4+ {[%clk
0:00:40.5]} 46. Bf4 {[%clk 0:00:03.4]} 46... g5+ {[%clk 0:00:39.3]} 47. Kh3
{[%clk 0:00:03.6]} 47... Rxf4 {[%clk 0:00:39.4]} 48. Bc8 {[%clk 0:00:03.4]}
48... d5 {[%clk 0:00:38.4]} 49. Bb7 {[%clk 0:00:03.4]} 49... d4 {[%clk
0:00:38.9]} 50. Kg3 {[%clk 0:00:03.8]} 50... d3 {[%clk 0:00:39]} 51. Ba6 {[%clk
0:00:04.6]} 51... d2 {[%clk 0:00:39.2]} 52. Be2 {[%clk 0:00:05.5]} 52... h4+
{[%clk 0:00:39.1]} 53. Kh3 {[%clk 0:00:05.9]} 53... Kh6 {[%clk 0:00:39.3]} 54.
Bd1 {[%clk 0:00:06.1]} 54... Bh5 {[%clk 0:00:39.3]} 55. Bc2 {[%clk 0:00:05.3]}
55... Rc4 {[%clk 0:00:37.7]} 56. Bb3 {[%clk 0:00:05.3]} 56... Rc3+ {[%clk
0:00:37.6]} 57. Kh2 {[%clk 0:00:06.2]} 57... Rxb3 {[%clk 0:00:37.7]} 58. Kg2
{[%clk 0:00:07.1]} 58... d1=Q {[%clk 0:00:37.6]} 0-1

[Event "Late-Titled-Tuesday-Blitz-June-25-2024"]
[Site "Chess.com"]
[Date "2024.06.25"]
[Round "1"]
[White "Viktor_Poddubnyi"]
[Black "crazy_but_lazy"]
[Result "0-1"]
[WhiteElo "2348"]
[BlackElo "2638"]
[TimeControl "180+1"]
[EndTime "14:07:53 PDT"]
[Termination "crazy_but_lazy won on time"]

1. e4 {[%clk 0:03:00]} 1... c5 {[%clk 0:02:50]} 2. Nf3 {[%clk 0:02:59.5]} 2...
g6 {[%clk 0:02:50.5]} 3. d4 {[%clk 0:02:56.5]} 3... cxd4 {[%clk 0:02:51.4]} 4.
Qxd4 {[%clk 0:02:56.3]} 4... Nf6 {[%clk 0:02:50.9]} 5. e5 {[%clk 0:02:56.1]}
5... Nc6 {[%clk 0:02:50.7]} 6. Qa4 {[%clk 0:02:56.3]} 6... Nd5 {[%clk
0:02:50.5]} 7. Qe4 {[%clk 0:02:56.6]} 7... Nb6 {[%clk 0:02:48.6]} 8. Nc3 {[%clk
0:02:55.6]} 8... Bg7 {[%clk 0:02:45.1]} 9. Bf4 {[%clk 0:02:55.7]} 9... d5 {[%clk
0:02:40]} 10. exd6 {[%clk 0:02:55.3]} 10... Bf5 {[%clk 0:02:39.9]} 11. dxe7
{[%clk 0:02:55.6]} 11... Qd7 {[%clk 0:02:02.2]} 12. Qe3 {[%clk 0:02:17.7]} 12...
Qxe7 {[%clk 0:01:40.7]} 13. Qxe7+ {[%clk 0:01:50.2]} 13... Kxe7 {[%clk
0:01:39.8]} 14. Bg5+ {[%clk 0:01:36.6]} 14... f6 {[%clk 0:01:36.2]} 15. Be3
{[%clk 0:01:36.3]} 15... Rhd8 {[%clk 0:01:29.9]} 16. Bb5 {[%clk 0:01:05.5]}
16... Rac8 {[%clk 0:01:20.2]} 17. O-O {[%clk 0:00:56.4]} 17... Nb4 {[%clk
0:01:15.8]} 18. Nd4 {[%clk 0:00:54.7]} 18... Bd7 {[%clk 0:01:12.8]} 19. Bxd7
{[%clk 0:00:47.8]} 19... Rxd7 {[%clk 0:01:13.7]} 20. a3 {[%clk 0:00:46]} 20...
N4d5 {[%clk 0:01:09.5]} 21. Nxd5+ {[%clk 0:00:42]} 21... Nxd5 {[%clk 0:01:10.4]}
22. Rfe1 {[%clk 0:00:38.6]} 22... Kf7 {[%clk 0:01:07.9]} 23. c3 {[%clk
0:00:35.9]} 23... f5 {[%clk 0:01:05.7]} 24. Rad1 {[%clk 0:00:27.2]} 24... Rcd8
{[%clk 0:00:56]} 25. Nf3 {[%clk 0:00:20.9]} 25... Nxe3 {[%clk 0:00:44.6]} 26.
Rxd7+ {[%clk 0:00:20.4]} 26... Rxd7 {[%clk 0:00:45.5]} 27. fxe3 {[%clk
0:00:18.9]} 27... Re7 {[%clk 0:00:25.3]} 28. Kf2 {[%clk 0:00:18]} 28... Bf6
{[%clk 0:00:25.8]} 29. Rd1 {[%clk 0:00:16.7]} 29... g5 {[%clk 0:00:26.3]} 30.
Nd4 {[%clk 0:00:15.1]} 30... Kg6 {[%clk 0:00:25.3]} 31. g3 {[%clk 0:00:14.6]}
31... h5 {[%clk 0:00:25.4]} 32. Nb5 {[%clk 0:00:12.7]} 32... a6 {[%clk
0:00:23.2]} 33. Nd4 {[%clk 0:00:11]} 33... Be5 {[%clk 0:00:18.2]} 34. Ne2 {[%clk
0:00:09.9]} 34... Bc7 {[%clk 0:00:15.1]} 35. Rd5 {[%clk 0:00:09.7]} 35... Kf6
{[%clk 0:00:13.2]} 36. Nd4 {[%clk 0:00:09.6]} 36... Be5 {[%clk 0:00:13.9]} 37.
Rd8 {[%clk 0:00:09.2]} 37... h4 {[%clk 0:00:11.2]} 38. Rf8+ {[%clk 0:00:08.7]}
38... Kg6 {[%clk 0:00:10.3]} 39. Nxf5 {[%clk 0:00:08.3]} 39... hxg3+ {[%clk
0:00:09.9]} 40. hxg3 {[%clk 0:00:08]} 40... Rd7 {[%clk 0:00:10.4]} 41. Nd4
{[%clk 0:00:07.5]} 41... Rh7 {[%clk 0:00:09.4]} 42. Re8 {[%clk 0:00:03.9]} 42...
Rh2+ {[%clk 0:00:07.3]} 43. Kf3 {[%clk 0:00:03.6]} 43... Bf6 {[%clk 0:00:05.9]}
44. b4 {[%clk 0:00:02.5]} 44... Ra2 {[%clk 0:00:05.5]} 45. Rb8 {[%clk
0:00:01.8]} 45... b5 {[%clk 0:00:04.3]} 0-1

[Event "Late-Titled-Tuesday-Blitz-June-25-2024"]
[Site "Chess.com"]
[Date "2024.06.25"]
[Round "1"]
[White "glucolisis04"]
[Black "Grossboss19"]
[Result "0-1"]
[WhiteElo "2304"]
[BlackElo "2612"]
[TimeControl "180+1"]
[EndTime "14:07:54 PDT"]
[Termination "Grossboss19 won by resignation"]

1. d4 {[%clk 0:02:56.9]} 1... f5 {[%clk 0:02:56.4]} 2. c4 {[%clk 0:02:57]} 2...
Nf6 {[%clk 0:02:56.3]} 3. g3 {[%clk 0:02:56.1]} 3... g6 {[%clk 0:02:54.7]} 4.
Bg2 {[%clk 0:02:56.6]} 4... Bg7 {[%clk 0:02:55.3]} 5. Nf3 {[%clk 0:02:57.1]}
5... O-O {[%clk 0:02:55.9]} 6. O-O {[%clk 0:02:57.7]} 6... d6 {[%clk 0:02:56.3]}
7. b3 {[%clk 0:02:57.6]} 7... Qe8 {[%clk 0:02:54.4]} 8. Bb2 {[%clk 0:02:57.2]}
8... e6 {[%clk 0:02:52.5]} 9. Nbd2 {[%clk 0:02:54.1]} 9... Nbd7 {[%clk
0:02:49.5]} 10. Qc2 {[%clk 0:02:53.8]} 10... d5 {[%clk 0:02:43.5]} 11. Rac1
{[%clk 0:02:38.5]} 11... c6 {[%clk 0:02:43.1]} 12. Ba3 {[%clk 0:02:33.7]} 12...
Ne4 {[%clk 0:02:36.2]} 13. Bxf8 {[%clk 0:02:31]} 13... Bxf8 {[%clk 0:02:37.1]}
14. Nxe4 {[%clk 0:02:26.5]} 14... fxe4 {[%clk 0:02:36.3]} 15. Ne5 {[%clk
0:02:27.1]} 15... Nxe5 {[%clk 0:02:29.5]} 16. dxe5 {[%clk 0:02:27.4]} 16... Bg7
{[%clk 0:02:07.4]} 17. f4 {[%clk 0:02:20.2]} 17... exf3 {[%clk 0:02:02]} 18.
exf3 {[%clk 0:02:18.8]} 18... Bxe5 {[%clk 0:02:01.8]} 19. Rfe1 {[%clk
0:02:11.7]} 19... Bd4+ {[%clk 0:02:01.7]} 20. Kh1 {[%clk 0:02:11.5]} 20... Qf7
{[%clk 0:02:01]} 21. f4 {[%clk 0:02:09.7]} 21... Bd7 {[%clk 0:01:59.8]} 22. Qd3
{[%clk 0:02:06.3]} 22... Bf6 {[%clk 0:01:55.3]} 23. Rcd1 {[%clk 0:01:45.3]}
23... Re8 {[%clk 0:01:54]} 24. Bf3 {[%clk 0:01:34.2]} 24... Kg7 {[%clk
0:01:46.1]} 25. Kg2 {[%clk 0:01:27.4]} 25... Re7 {[%clk 0:01:42.5]} 26. b4
{[%clk 0:01:19.7]} 26... a6 {[%clk 0:01:35.8]} 27. a4 {[%clk 0:01:19.2]} 27...
Be8 {[%clk 0:01:34.8]} 28. cxd5 {[%clk 0:01:11.7]} 28... exd5 {[%clk 0:01:33.4]}
29. Rxe7 {[%clk 0:01:07.7]} 29... Qxe7 {[%clk 0:01:34.3]} 30. Qe2 {[%clk
0:01:02.5]} 30... Qxe2+ {[%clk 0:01:24.7]} 31. Bxe2 {[%clk 0:01:02.6]} 31... b5
{[%clk 0:01:25.1]} 32. Rc1 {[%clk 0:00:48.4]} 32... Bb2 {[%clk 0:01:19.3]} 33.
Rb1 {[%clk 0:00:45.7]} 33... Bc3 {[%clk 0:01:18]} 34. Rb3 {[%clk 0:00:43.2]}
34... d4 {[%clk 0:01:11.3]} 35. a5 {[%clk 0:00:38]} 35... Bf7 {[%clk 0:01:10.6]}
36. Rb1 {[%clk 0:00:37.8]} 36... Ba2 {[%clk 0:01:09.7]} 37. Rd1 {[%clk
0:00:36.6]} 37... Bb3 {[%clk 0:01:06.4]} 38. Rb1 {[%clk 0:00:36]} 38... Ba2
{[%clk 0:01:03.7]} 39. Rc1 {[%clk 0:00:35.7]} 39... Be6 {[%clk 0:00:56.1]} 40.
Bf3 {[%clk 0:00:35.9]} 40... Bd7 {[%clk 0:00:56.4]} 41. Rd1 {[%clk 0:00:34.2]}
41... Kf6 {[%clk 0:00:55.9]} 42. Be4 {[%clk 0:00:34.2]} 42... Ke7 {[%clk
0:00:55.4]} 43. Kf3 {[%clk 0:00:34.5]} 43... Kd6 {[%clk 0:00:55.6]} 44. g4
{[%clk 0:00:30.5]} 44... c5 {[%clk 0:00:53.2]} 45. bxc5+ {[%clk 0:00:24.8]}
45... Kxc5 {[%clk 0:00:54.1]} 46. Bb7 {[%clk 0:00:24.6]} 46... b4 {[%clk
0:00:50.6]} 47. Bxa6 {[%clk 0:00:23.6]} 47... b3 {[%clk 0:00:49.2]} 48. Bd3
{[%clk 0:00:24.1]} 48... Bxa5 {[%clk 0:00:47.9]} 49. Rb1 {[%clk 0:00:20.5]}
49... Bc6+ {[%clk 0:00:36.1]} 50. Be4 {[%clk 0:00:19]} 50... Ba4 {[%clk
0:00:35.8]} 51. f5 {[%clk 0:00:16.8]} 51... gxf5 {[%clk 0:00:33.7]} 52. gxf5
{[%clk 0:00:16.7]} 52... Bd8 {[%clk 0:00:31.1]} 53. Ra1 {[%clk 0:00:15.2]} 53...
Kb4 {[%clk 0:00:29.4]} 54. Bb1 {[%clk 0:00:12.1]} 54... Bc6+ {[%clk 0:00:22.3]}
55. Ke2 {[%clk 0:00:07.8]} 55... Kc3 {[%clk 0:00:19.6]} 56. Ra6 {[%clk
0:00:07.7]} 56... Bb5+ {[%clk 0:00:19.4]} 0-1